{"text_format":"3","workbook":"xlsx","n_sheets":1,"sheets":["Sheet"],"not_rendered":{"external_links":1,"defined_names":1},"read":"whole","date_system":"1900"}

{"sheet":"Sheet","index":0,"n_rows":30,"n_cols":8,"rows_kept":30}
["ID","Направление:","ФИО участника","Класс","Образовательное учреждение с указанием района\n(по Уставу)","Название работы","ФИО научного руководителя, должность","место"]
[1,"Конкурс «Творчество без границ»","Сабанаева Карина Эдуардовна","6 класс","муниципальное бюджетное общеобразовательное учреждение \"Средняя общеобразовательная школа села Средний Кумор\" Кукморского муниципального района Республики Татарстан  ","Помогите, я в беде","Пахомова Людмила Анатольевна, учитель начальных классов ",1]
[2,"Конкурс «Творчество без границ»","Еременко Василиса Романовна","5 класс","Муниципальное бюджетное общеобразовательное учреждение \"Чарлинская средняя школа\" Кукморского муниципального района","Будь другом природе","Хабибуллина Ольга Александровна",2]
[3,"Конкурс «Творчество без границ»","Никитина Ангелина Николаевна","6 класс","муниципальное бюджетное общеобразовательное учреждение «Средняя общеобразовательная школа с. Село-Чура» Кукморского муниципального района Республики Татарстан","\"Посмотрите на мир с другими глазами!\"","Игушина Азалия Музиповна",3]
[4,"Конкурс «Творчество без границ»","Сагдеева Сюмбель Хамитовна","7 класс","Кукморский муниципальный район  МБОУ \"Почкучукская средняя школа\"","\"Выбор ха нами\"","Сагдеева Гузаль Нурхалясовна",1]
[5,"Конкурс «Творчество без границ»","Зиганшина Зарина Маратовна","5 класс","МБОУ \"Средняя общеобразовательная школа № 8\", МБУ ДО \"ДЭБЦ\" г. Нижнекамск","Охрана природы","Нурмухаметова Э.В., Ахмерова Д.Р.",2]
[6,"Конкурс «Творчество без границ»","Галимуллина Лилия Ринатовна","7 класс","Муниципальное бюджетное общеобразовательное учреждение \"Шемяковская основная общеобразовательная школа\" Мамадышского муниципального района","\"Всегда есть выбор\"","Ямалиева Эльмира Накиповна",3]
[7,"Конкурс «Творчество без границ»","Исекеева Янина Андреевна","7 класс","МБОУ \"СОШ им. С.А.Ахтямова с. Манзарас\" Кукморского муниципального района РТ","\"Здоровье планеты в наших руках\"","Кайбушева Миляуша Файзулхаковна, учитель ИЗО",1]
[8,"Конкурс «Творчество без границ»","Гаврилова Элина Алевтиновна","7 класс","Муниципальное бюджетное общеобразовательное учреждение «Ошторма - Юмьинская средняя школа \" Кукморского муниципального района Республики Татарстан ","\"Открывая старую страницу\"","Елизарова Чулпан Ивановна, учитель географии, труда и ИЗО.",3]
[9,"Конкурс «Творчество без границ»","Газизов Ризван Айратович","7 класс","Муниципальное бюджетное общеобразовательное учреждение \"Верхнесуньская основная общеобразовательная школа\" Мамадышского муниципального района Республики Татарстан","Берегите лес!","Габидуллина Миляуша Хатиповна, учитель биологии",2]
[10,"Конкурс «Творчество без границ»","Апушева Дарья Валерьевна","7 класс","Муниципальное бюджетное общеобразовательное учреждение \"Нижнесуньская средняя общеобразовательная школа\" Мамадышского муниципального района Республики Татарстан","Так не должно быть!","Габидуллина Миляуша Хатиповна, учитель биологии",2]
[11,"Конкурс «Творчество без границ»","Хуснуллин Аяз Айратович","7 класс","Муниципальное бюджетное общеобразовательное учреждение \"Верхнесуньская основная общеобразовательная школа\" Мамадышского муниципального района Республики Татарстан","Чистая вода- крепкое здоровье!","Габидуллина Миляуша Хатиповна, учитель биологии",2]
[12,"Конкурс «Творчество без границ»","Ярмухаметова Адиля Азатовна","6 класс","Муниципальное бюджетное общеобразовательное учреждение «Верхне-Арбашская средняя школа им.А.Х.Газизуллина» Кукморского муниципального района Республики Татарстан","«Сохраним нашу планету вместе»","Ярмухаметова Дания Ильдусовна",3]
[13,"Конкурс «Творчество без границ»","Тимербаева Залина Ниязовна","6 класс","Муниципальное бюджетное общеобразовательное учреждение «Верхне-Арбашская средняя школа им.А.Х.Газизуллина» Кукморского муниципального района Республики Татарстан","«Мой голос за природу»","Ярмухаметова Дания Ильдусовна",3]
[14,"Конкурс «Творчество без границ»","Митрофанова Азалия Алексеевна","7 класс","Муниципальное бюджетное общеобразовательное учреждение \"Ошторма - Юмьинская средняя школа \" Кукморского муниципального района Республики Татарстан ","\"Удивительный мир природы\"","Тихонова Ирина Михайловна",3]
[15,"Конкурс «Творчество без границ»","Нуриева Ралина Рамазановна","5 класс","Муниципальное бюджетное учреждение дополнительного образования \"Центр детского творчества \"Галактика\" Кукморского муниципального района Республики Татарстан","Амурский тигр","Ямалов Тахир Мунирович"]
[16,"Конкурс «Творчество без границ»","Нигъматзянова Алина Айратовна","7 класс","МБОУ \"Яныльская средняя школа им. Р.М.Зарипова\", МБУДО «Центр детского творчества «Галактика»  Кукморского муниципального района РТ","Зелёное будущее нашей планеты в наших руках ","Хисматова Светлана Николаевна, учитель биологии и химии, педагог дополнительного образования",3]
[17,"Конкурс «Творчество без границ»","Шамсемухаметов Алмаз Ильшатович","6 класс","\tМуниципальное бюджетное общеобразовательное учреждение «Верхне-Арбашская средняя школа им.А.Х.Газизуллина» Кукморского муниципального района Республики Татарстан","\t«Берегите природу!» ","Ярмухаметова Дания Ильдусовна",3]
[18,"Конкурс «Творчество без границ»","Фасхиева Нурзила Ринатовна","6 класс","\tМуниципальное бюджетное общеобразовательное учреждение «Верхне-Арбашская средняя школа им.А.Х.Газизуллина» Кукморского муниципального района Республики Татарстан"," Чистим мир вместе","Ярмухаметова Дания Ильдусовна",3]
[19,"Конкурс «Творчество без границ»","Яруллина Малика  ","5 класс","МБОУ \"Гимназия №1 имени Ч.Т. Айтматова г. Кукмор\" Кукморского муниципального района РТ","Наша планета-в наших руках!","Галлямова Аниса Марселевна",2]
[20,"Конкурс «Творчество без границ»","Фасхиева Нурзада Ринатовна","6 класс","Муниципальное бюджетное общеобразовательное учреждение «Верхне-Арбашская средняя школа им.А.Х.Газизуллина» Кукморского муниципального района Республики Татарстан","\"Сохраним жизнь на земле\"","Ярмухаметова Дания Ильдусовна",3]
[21,"Конкурс «Творчество без границ»","Асатова Ясмина Тагировна","7 класс","МБОУ \"Верхне-Арбашская средняя школа\" Кукморского муниципального района РТ","\"Всё в твоих руках\"","Исламова Гульшат Ильфатовна, воспитатель в группе продленного дня",3]
[22,"Конкурс «Творчество без границ»","Сайфуллина Алсу Наиловна","7 класс","МБОУ «Верхне-Арбашская средняя школа» Кукморского муниципального района РТ","\"Берегите природу!\"","Исламова Гульшат Ильфатовна, воспитатель в группе продленного дня",1]
[23,"Конкурс «Творчество без границ»","Гильмутдинова Ильвина","6 класс","МБОУ \"Большекукморская средняя школа с углубленным изучением отдельных предметов им.М.М.Мансурова\"","\"Выбор за нами\"","Баширова Айгуль Рашатовна",2]
[24,"Конкурс «Творчество без границ»","Шагиахметова Азалия","6 класс","МБОУ \"Большекукморская средняя школа с углубленным изучением отдельных предметов им.М.М.Мансурова\"","\"Береги природу!\"","Баширова Айгуль Рашатовна, учитель изобразительного искусства",3]
[25,"Конкурс «Творчество без границ»",{"$f":"[1]Sheet!D26","v":"Ахтамзянова Азалия"},{"$f":"[1]Sheet!E26","v":"5 класс"},"МБОУ «Верхне-Арбашская средняя школа» ",{"$f":"[1]Sheet!H26","v":"рисунок"},{"$f":"[1]Sheet!I26","v":"Зиятдинова Р.К."},3]
[26,"Конкурс «Творчество без границ»",{"$f":"[1]Sheet!D27","v":"Муртазин Карим"},{"$f":"[1]Sheet!E27","v":"5 класс"},"МБОУ «Верхне-Арбашская средняя школа» ",{"$f":"[1]Sheet!H27","v":"рисунок"},{"$f":"[1]Sheet!I27","v":"Зиятдинова Р.К."},3]
[27,"Конкурс «Творчество без границ»",{"$f":"[1]Sheet!D28","v":"Шигабиев Тимур"},{"$f":"[1]Sheet!E28","v":"5 класс"},"МБОУ «Верхне-Арбашская средняя школа» ",{"$f":"[1]Sheet!H28","v":"рисунок"},{"$f":"[1]Sheet!I28","v":"Зиятдинова Р.К."}]
[28,"Конкурс «Творчество без границ»",{"$f":"[1]Sheet!D29","v":"Шарипова Камиля"},{"$f":"[1]Sheet!E29","v":"5 класс"},"МБОУ «Верхне-Арбашская средняя школа» ",{"$f":"[1]Sheet!H29","v":"рисунок"},{"$f":"[1]Sheet!I29","v":"Зиятдинова Р.К."},3]
[29,"Конкурс «Творчество без границ»",{"$f":"[1]Sheet!D30","v":"Курбангалиева Ильзия"},{"$f":"[1]Sheet!E30","v":"6 класс"},"МБОУ «Верхне-Арбашская средняя школа» ",{"$f":"[1]Sheet!H30","v":"рисунок"},{"$f":"[1]Sheet!I30","v":"Зиятдинова Р.К."},3]